[Event "Szansa Chess Open 2022"]
[Site "Warsaw"]
[Date "2022.09.17"]
[Round "1.1"]
[White "Gumularz, Szymon"]
[Black "Czyzak, Blazej"]
[Result "1-0"]
[ECO "B22"]
[WhiteElo "2532"]
[BlackElo "1517"]
[Annotator "ChessBase"]
[PlyCount "57"]
[EventDate "2022.09.17"]
[EventCountry "POL"]
[SourceTitle "playchess.com"]
[Source "ChessBase"]
[SourceQuality "1"]
[TimeControl "900+10"]

1. e4 {[%emt 0:00:03]} c5 {[%emt 0:00:12]} 2. c3 {[%emt 0:00:04]} Nc6 {[%emt 0:00:14]} 3. d4 {[%emt 0:00:02]} cxd4 {[%emt 0:00:03]} 4. cxd4 {[%emt 0:00:01]} g6 {[%emt 0:00:16]} 5. d5 {[%emt 0:00:05]} Nb4 {[%emt 0:00:56]} 6. Nc3 {[%emt 0:00:09]} Bg7 {[%emt 0:00:09]} 7. Nf3 {[%emt 0:00:03]} Nf6 {[%emt 0:00:22]} 8. a3 {[%emt 0:00:12]} Na6 {[%emt 0:00:02]} 9. e5 {[%emt 0:00:03]} Ng4 {[%emt 0:00:10]} 10. Bf4 {[%emt 0:00:06]} Qb6 {[%emt 0:00:29]} 11. Qe2 {[%emt 0:00:03]} O-O {[%emt 0:00:40]} 12. h3 {[%emt 0:00:07]} Nh6 {[%emt 0:00:05]} 13. Qd2 {[%emt 0:00:09]} Nf5 {[%emt 0:01:47]} 14. g4 {[%emt 0:00:02]} Nc5 {[%emt 0:00:24]} 15. Bc4 {[%emt 0:00:04]} d6 {[%emt 0:00:29]} 16. gxf5 {[%emt 0:00:13]} Bxf5 {[%emt 0:00:06]} 17. Be3 {[%emt 0:00:37]} Qc7 {[%emt 0:00:18]} 18. Rc1 {[%emt 0:00:06]} dxe5 {[%emt 0:00:23]} 19. Nb5 {[%emt 0:00:14]} Qc8 {[%emt 0:00:28]} 20. Be2 {[%emt 0:00:19]} b6 {[%emt 0:00:16]} 21. b4 {[%emt 0:00:03]} a6 {[%emt 0:00:01]} 22. bxc5 {[%emt 0:00:04]} axb5 {[%emt 0:00:03]} 23. cxb6 {[%emt 0:00:02]} Qb8 {[%emt 0:00:13]} 24. Qb4 {[%emt 0:01:00]} Rd8 {[%emt 0:01:10]} 25. Bxb5 {[%emt 0:00:11]} Bd7 {[%emt 0:00:52]} 26. Bc6 {[%emt 0:00:10]} Ra6 {[%emt 0:01:18]} 27. b7 {[%emt 0:00:16]} Bf8 {[%emt 0:00:45]} 28. Bxd7 {[%emt 0:00:18]} Rxd7 {[%emt 0:00:01]} 29. Rc8 {[%emt 0:00:11]} 1-0

[Event "Szansa Chess Open 2022"]
[Site "Warsaw"]
[Date "2022.09.17"]
[Round "1.2"]
[White "Majkowski, Blazej"]
[Black "Kosakowski, Jakub"]
[Result "0-1"]
[ECO "D02"]
[WhiteElo "1561"]
[BlackElo "2457"]
[Annotator "ChessBase"]
[PlyCount "56"]
[EventDate "2022.09.17"]
[EventCountry "POL"]
[SourceTitle "playchess.com"]
[Source "ChessBase"]
[SourceQuality "1"]
[TimeControl "900+10"]

1. d4 {[%emt 0:00:10]} Nf6 {[%emt 0:00:06]} 2. Bf4 {[%emt 0:00:00]} d5 {[%emt 0:00:05]} 3. Nf3 {[%emt 0:00:01]} c5 {[%emt 0:00:06]} 4. e3 {[%emt 0:00:09]} Nc6 {[%emt 0:00:03]} 5. c3 {[%emt 0:00:05]} Qb6 {[%emt 0:00:03]} 6. Qb3 {[%emt 0:00:11]} c4 {[%emt 0:00:03]} 7. Qxb6 {[%emt 0:00:24]} axb6 {[%emt 0:00:03]} 8. Be2 {[%emt 0:00:31]} Bf5 {[%emt 0:00:19]} 9. Nbd2 {[%emt 0:00:29]} b5 {[%emt 0:00:02]} 10. Ne5 {[%emt 0:01:47]} e6 {[%emt 0:02:55]} 11. f3 {[%emt 0:00:51]} Nxe5 {[%emt 0:00:46]} 12. Bxe5 {[%emt 0:00:22]} b4 {[%emt 0:00:09]} 13. Bxf6 {[%emt 0:01:52]} gxf6 {[%emt 0:00:03]} 14. e4 {[%emt 0:00:01]} Bg6 {[%emt 0:00:02]} 15. exd5 {[%emt 0:02:20]} exd5 {[%emt 0:00:03]} 16. Kf2 {[%emt 0:01:03]} bxc3 {[%emt 0:01:12]} 17. bxc3 {[%emt 0:00:02]} Ba3 {[%emt 0:00:04]} 18. Nxc4 {[%emt 0:01:48]} dxc4 {[%emt 0:00:06]} 19. Bxc4 {[%emt 0:00:02]} O-O {[%emt 0:00:09]} 20. Bb3 {[%emt 0:00:45]} Bb2 {[%emt 0:00:12]} 21. Rad1 {[%emt 0:00:06]} Bxc3 {[%emt 0:00:03]} 22. h4 {[%emt 0:00:09]} Rfd8 {[%emt 0:00:14]} 23. d5 {[%emt 0:00:13]} Bb4 {[%emt 0:00:46]} 24. g4 {[%emt 0:00:26]} Bc2 {[%emt 0:00:13]} 25. Bxc2 {[%emt 0:01:49]} Rxa2 {[%emt 0:00:03]} 26. h5 {[%emt 0:00:02]} Rxc2+ {[%emt 0:00:03]} 27. Kg3 {[%emt 0:00:05]} Bd6+ {[%emt 0:00:06]} 28. Kh4 {[%emt 0:00:55]} Re8 {[%emt 0:00:03]} 0-1

[Event "Szansa Chess Open 2022"]
[Site "Warsaw"]
[Date "2022.09.17"]
[Round "1.3"]
[White "Jakubowski, Krzysztof"]
[Black "Strepikowski, Pawel"]
[Result "1-0"]
[ECO "B09"]
[WhiteElo "2466"]
[BlackElo "1867"]
[Annotator "ChessBase"]
[PlyCount "49"]
[EventDate "2022.09.17"]
[EventCountry "POL"]
[SourceTitle "playchess.com"]
[Source "ChessBase"]
[SourceQuality "1"]
[TimeControl "900+10"]

1. e4 {[%emt 0:00:03]} d6 {[%emt 0:00:01]} 2. d4 {[%emt 0:00:03]} Nf6 {[%emt 0:00:01]} 3. Nc3 {[%emt 0:00:03]} g6 {[%emt 0:00:02]} 4. f4 {[%emt 0:00:04]} Bg7 {[%emt 0:00:04]} 5. Nf3 {[%emt 0:00:03]} O-O {[%emt 0:00:03]} 6. Be3 {[%emt 0:00:03]} b6 {[%emt 0:00:02]} 7. Qe2 {[%emt 0:00:05]} c5 {[%emt 0:00:19]} 8. O-O-O {[%emt 0:00:16]} Qc7 {[%emt 0:00:32]} 9. e5 {[%emt 0:02:23]} Ng4 {[%emt 0:04:50]} 10. Bg1 {[%emt 0:01:37]} cxd4 {[%emt 0:02:11]} 11. Nb5 {[%emt 0:00:10]} Qd7 {[%emt 0:02:33]} 12. Nbxd4 {[%emt 0:04:23]} dxe5 {[%emt 0:02:05]} 13. fxe5 {[%emt 0:00:24]} Ba6 {[%emt 0:00:14]} 14. Qe4 {[%emt 0:01:03]} Bb7 {[%emt 0:00:14]} 15. Qe1 {[%emt 0:00:01]} Qa4 {[%emt 0:01:18]} 16. Kb1 {[%emt 0:00:38]} Na6 {[%emt 0:00:24]} 17. h3 {[%emt 0:00:24]} Bxf3 {[%emt 0:00:20]} 18. gxf3 {[%emt 0:00:25]} Nb4 {[%emt 0:01:47]} 19. a3 {[%emt 0:00:09]} Nxc2 {[%emt 0:00:22]} 20. Nxc2 {[%emt 0:00:04]} Nxe5 {[%emt 0:00:01]} 21. Qe4 {[%emt 0:00:36]} Qb3 {[%emt 0:00:49]} 22. Bd4 {[%emt 0:00:33]} Rad8 {[%emt 0:00:15]} 23. Be2 {[%emt 0:00:08]} f6 {[%emt 0:00:22]} 24. Bxe5 {[%emt 0:00:09]} fxe5 {[%emt 0:00:01]} 25. Bc4+ {[%emt 0:00:02]} 1-0

[Event "Szansa Chess Open 2022"]
[Site "Warsaw"]
[Date "2022.09.17"]
[Round "1.4"]
[White "Rylski, Tadeusz"]
[Black "Nasuta, Grzegorz"]
[Result "0-1"]
[ECO "B90"]
[WhiteElo "1733"]
[BlackElo "2531"]
[Annotator "ChessBase"]
[PlyCount "79"]
[EventDate "2022.09.17"]
[EventCountry "POL"]
[SourceTitle "playchess.com"]
[Source "ChessBase"]
[SourceQuality "1"]
[TimeControl "900+10"]

1. e4 {[%emt 0:00:01]} c5 {[%emt 0:00:00]} 2. Nf3 {[%emt 0:00:01]} d6 {[%emt 0:00:05]} 3. d4 {[%emt 0:00:02]} cxd4 {[%emt 0:00:01]} 4. Nxd4 {[%emt 0:00:01]} Nf6 {[%emt 0:00:05]} 5. Nc3 {[%emt 0:00:01]} a6 {[%emt 0:00:00]} 6. h3 {[%emt 0:00:10]} e6 {[%emt 0:00:07]} 7. g4 {[%emt 0:00:23]} h6 {[%emt 0:00:02]} 8. Bg2 {[%emt 0:00:34]} Be7 {[%emt 0:00:01]} 9. f4 {[%emt 0:00:45]} Nc6 {[%emt 0:00:15]} 10. Be3 {[%emt 0:00:43]} Nd7 {[%emt 0:00:17]} 11. O-O {[%emt 0:00:56]} O-O {[%emt 0:00:04]} 12. Qd2 {[%emt 0:00:22]} Nxd4 {[%emt 0:00:04]} 13. Bxd4 {[%emt 0:00:33]} e5 {[%emt 0:00:01]} 14. Be3 {[%emt 0:00:21]} exf4 {[%emt 0:00:01]} 15. Bxf4 {[%emt 0:01:09]} Ne5 {[%emt 0:00:01]} 16. Nd5 {[%emt 0:00:32]} Be6 {[%emt 0:02:19]} 17. Nxe7+ {[%emt 0:03:42]} Qxe7 {[%emt 0:00:01]} 18. Rad1 {[%emt 0:00:03]} Rfd8 {[%emt 0:00:01]} 19. Qb4 {[%emt 0:01:38]} Qc7 {[%emt 0:00:01]} 20. Rf2 {[%emt 0:01:02]} Rd7 {[%emt 0:01:46]} 21. b3 {[%emt 0:00:58]} f6 {[%emt 0:01:11]} 22. c4 {[%emt 0:00:23]} a5 {[%emt 0:01:41]} 23. Qb5 {[%emt 0:01:32]} a4 {[%emt 0:00:41]} 24. Rfd2 {[%emt 0:00:31]} Ra6 {[%emt 0:03:36]} 25. Bxe5 {[%emt 0:01:34]} fxe5 {[%emt 0:00:04]} 26. c5 {[%emt 0:00:07]} axb3 {[%emt 0:00:59]} 27. axb3 {[%emt 0:00:41]} Ra5 {[%emt 0:00:01]} 28. Qb6 {[%emt 0:00:46]} Rxc5 {[%emt 0:02:33]} 29. Qxc7 {[%emt 0:00:06]} Rcxc7 {[%emt 0:00:01]} 30. Rxd6 {[%emt 0:00:02]} Rxd6 {[%emt 0:00:01]} 31. Rxd6 {[%emt 0:00:01]} Bxb3 {[%emt 0:00:00]} 32. Rb6 {[%emt 0:00:14]} Ba4 {[%emt 0:01:21]} 33. h4 {[%emt 0:00:02]} Kf7 {[%emt 0:00:11]} 34. g5 {[%emt 0:00:03]} hxg5 {[%emt 0:00:02]} 35. hxg5 {[%emt 0:00:03]} Rc1+ {[%emt 0:00:41]} 36. Kf2 {[%emt 0:00:38]} Bc6 {[%emt 0:00:01]} 37. Kg3 {[%emt 0:00:03]} Kg6 {[%emt 0:00:00]} 38. Kh4 {[%emt 0:00:05]} Rg1 {[%emt 0:01:41]} 39. Bh3 {[%emt 0:00:38]} Rh1 {[%emt 0:00:01]} 40. Kg4 0-1

[Event "Szansa Chess Open 2022"]
[Site "Warsaw"]
[Date "2022.09.17"]
[Round "1.5"]
[White "Nowak, Lukasz"]
[Black "Flis, Piotr"]
[Result "0-1"]
[ECO "A04"]
[WhiteElo "2327"]
[BlackElo "1484"]
[Annotator "ChessBase"]
[PlyCount "70"]
[EventDate "2022.09.17"]
[EventCountry "POL"]
[SourceTitle "playchess.com"]
[Source "ChessBase"]
[SourceQuality "1"]
[TimeControl "900+10"]

1. Nf3 {[%emt 0:00:06]} c5 {[%emt 0:00:02]} 2. c4 {[%emt 0:00:02]} Nf6 {[%emt 0:00:02]} 3. g3 {[%emt 0:00:03]} Nc6 {[%emt 0:00:01]} 4. Nc3 {[%emt 0:00:04]} d5 {[%emt 0:00:01]} 5. cxd5 {[%emt 0:00:06]} Nxd5 {[%emt 0:00:01]} 6. Nxd5 {[%emt 0:00:13]} Qxd5 {[%emt 0:00:01]} 7. Bg2 {[%emt 0:00:02]} e5 {[%emt 0:00:09]} 8. d3 {[%emt 0:00:37]} Be7 {[%emt 0:00:02]} 9. O-O {[%emt 0:00:16]} O-O {[%emt 0:00:19]} 10. Be3 {[%emt 0:00:57]} Qe6 {[%emt 0:01:29]} 11. Ng5 {[%emt 0:02:27]} Bxg5 {[%emt 0:00:38]} 12. Bxg5 {[%emt 0:00:02]} Bd7 {[%emt 0:00:07]} 13. Bd2 Rac8 {[%emt 0:00:08]} 14. b3 {[%emt 0:02:06]} b6 {[%emt 0:00:01]} 15. Bc3 {[%emt 0:00:19]} Rfe8 {[%emt 0:00:01]} 16. Rc1 {[%emt 0:00:24]} a5 {[%emt 0:00:02]} 17. Bb2 {[%emt 0:00:55]} Qe7 {[%emt 0:00:02]} 18. Re1 {[%emt 0:01:50]} h5 {[%emt 0:00:01]} 19. h3 {[%emt 0:00:08]} Qg5 {[%emt 0:00:32]} 20. e3 {[%emt 0:01:50]} Red8 {[%emt 0:00:29]} 21. Qe2 {[%emt 0:01:46]} Bf5 {[%emt 0:00:12]} 22. e4 {[%emt 0:01:15]} Be6 {[%emt 0:00:06]} 23. Bc3 {[%emt 0:00:09]} h4 {[%emt 0:00:01]} 24. g4 {[%emt 0:01:13]} Rd6 {[%emt 0:00:01]} 25. Rf1 {[%emt 0:00:28]} Rcd8 {[%emt 0:00:00]} 26. Rcd1 {[%emt 0:00:09]} Bc8 {[%emt 0:00:07]} 27. f4 {[%emt 0:00:16]} exf4 {[%emt 0:00:03]} 28. e5 {[%emt 0:00:54]} Re6 {[%emt 0:00:01]} 29. Bxc6 {[%emt 0:00:10]} Rxc6 {[%emt 0:00:01]} 30. Qf3 {[%emt 0:00:02]} Qg6 {[%emt 0:00:30]} 31. Qxf4 {[%emt 0:00:06]} Be6 {[%emt 0:00:01]} 32. Qf3 {[%emt 0:00:30]} Rc7 {[%emt 0:00:01]} 33. Qe4 {[%emt 0:00:08]} Qxe4 {[%emt 0:00:04]} 34. dxe4 {[%emt 0:00:01]} Rcd7 {[%emt 0:00:01]} 35. Rde1 {[%emt 0:00:27]} Rd3 {[%emt 0:00:01]} 0-1

[Event "Szansa Chess Open 2022"]
[Site "Warsaw"]
[Date "2022.09.17"]
[Round "1.6"]
[White "Maryniec, Grzegorz"]
[Black "Kozak, Antoni"]
[Result "1-0"]
[ECO "A15"]
[WhiteElo "1355"]
[BlackElo "2434"]
[Annotator "ChessBase"]
[PlyCount "55"]
[EventDate "2022.09.17"]
[EventCountry "POL"]
[SourceTitle "playchess.com"]
[Source "ChessBase"]
[SourceQuality "1"]
[TimeControl "900+10"]

1. c4 {[%emt 0:00:02]} Nf6 {[%emt 0:00:04]} 2. g3 {[%emt 0:00:02]} g6 {[%emt 0:00:02]} 3. Bg2 {[%emt 0:00:01]} Bg7 {[%emt 0:00:02]} 4. Nc3 {[%emt 0:00:02]} O-O {[%emt 0:00:03]} 5. e4 {[%emt 0:00:02]} d6 {[%emt 0:00:02]} 6. Nge2 {[%emt 0:00:02]} c5 {[%emt 0:00:04]} 7. O-O {[%emt 0:00:04]} Nc6 {[%emt 0:00:05]} 8. d3 {[%emt 0:00:01]} a6 {[%emt 0:00:36]} 9. h3 {[%emt 0:00:02]} Bd7 {[%emt 0:00:44]} 10. Be3 {[%emt 0:00:06]} e5 {[%emt 0:01:06]} 11. f4 {[%emt 0:00:14]} Nd4 {[%emt 0:00:13]} 12. f5 {[%emt 0:01:12]} gxf5 {[%emt 0:03:11]} 13. Bg5 {[%emt 0:00:02]} h6 {[%emt 0:03:03]} 14. Bh4 {[%emt 0:00:09]} Qc8 {[%emt 0:00:26]} 15. Qd2 {[%emt 0:02:27]} f4 {[%emt 0:02:09]} 16. Bxf6 {[%emt 0:00:59]} Bxf6 {[%emt 0:00:02]} 17. Nd5 {[%emt 0:00:01]} Bd8 {[%emt 0:00:01]} 18. Nxd4 {[%emt 0:00:56]} cxd4 {[%emt 0:00:19]} 19. gxf4 {[%emt 0:00:36]} Kh7 {[%emt 0:01:49]} 20. fxe5 {[%emt 0:01:30]} dxe5 {[%emt 0:00:04]} 21. Nf6+ {[%emt 0:00:02]} Kg7 {[%emt 0:00:01]} 22. Qf2 {[%emt 0:00:03]} Bxf6 {[%emt 0:01:36]} 23. Qxf6+ {[%emt 0:00:05]} Kh7 {[%emt 0:00:01]} 24. Qxe5 {[%emt 0:01:00]} Bxh3 {[%emt 0:00:17]} 25. Qh5 {[%emt 0:00:36]} Bxg2 {[%emt 0:01:01]} 26. Rf6 {[%emt 0:01:07]} Kg7 {[%emt 0:01:21]} 27. Qxh6+ {[%emt 0:00:06]} Kg8 {[%emt 0:00:01]} 28. Qg5+ {[%emt 0:00:02]} 1-0

[Event "Szansa Chess Open 2022"]
[Site "Warsaw"]
[Date "2022.09.17"]
[Round "1.7"]
[White "Nguyen, Piotr"]
[Black "Sidorczuk, Pawel"]
[Result "0-1"]
[ECO "B06"]
[WhiteElo "2421"]
[BlackElo "1886"]
[Annotator "ChessBase"]
[PlyCount "62"]
[EventDate "2022.09.17"]
[EventCountry "POL"]
[SourceTitle "playchess.com"]
[Source "ChessBase"]
[SourceQuality "1"]
[TimeControl "900+10"]

1. e4 {[%emt 0:00:04]} g6 {[%emt 0:00:01]} 2. Nc3 {[%emt 0:00:03]} Bg7 {[%emt 0:00:02]} 3. f4 {[%emt 0:00:02]} c6 {[%emt 0:00:06]} 4. Nf3 {[%emt 0:00:04]} d5 {[%emt 0:00:01]} 5. e5 {[%emt 0:01:15]} Nh6 {[%emt 0:00:32]} 6. d4 {[%emt 0:00:31]} Bg4 {[%emt 0:00:25]} 7. h3 {[%emt 0:00:37]} Bxf3 {[%emt 0:00:03]} 8. Qxf3 {[%emt 0:00:02]} Nf5 {[%emt 0:00:04]} 9. Qf2 {[%emt 0:00:38]} Qb6 {[%emt 0:00:18]} 10. Ne2 {[%emt 0:01:31]} h5 {[%emt 0:00:05]} 11. c3 {[%emt 0:01:02]} h4 {[%emt 0:00:06]} 12. g4 {[%emt 0:00:44]} hxg3 {[%emt 0:00:03]} 13. Nxg3 {[%emt 0:00:02]} e6 {[%emt 0:00:26]} 14. Nxf5 {[%emt 0:00:51]} exf5 {[%emt 0:00:01]} 15. Qg2 {[%emt 0:02:09]} Nd7 {[%emt 0:00:48]} 16. e6 {[%emt 0:00:16]} Nf8 {[%emt 0:00:03]} 17. exf7+ {[%emt 0:00:24]} Kxf7 {[%emt 0:00:02]} 18. Rg1 {[%emt 0:01:19]} Re8+ {[%emt 0:00:11]} 19. Kd1 {[%emt 0:00:17]} Rh6 {[%emt 0:01:57]} 20. Bd3 {[%emt 0:00:15]} Bf6 {[%emt 0:00:51]} 21. Bxf5 {[%emt 0:01:36]} gxf5 {[%emt 0:00:20]} 22. Qg8+ {[%emt 0:00:04]} Ke7 {[%emt 0:00:02]} 23. Re1+ {[%emt 0:00:00]} Kd8 {[%emt 0:00:01]} 24. Rxe8+ {[%emt 0:00:02]} Kxe8 {[%emt 0:00:00]} 25. Qg2 {[%emt 0:01:35]} Kf7 {[%emt 0:03:23]} 26. Kc2 {[%emt 0:00:19]} Rg6 {[%emt 0:00:27]} 27. Qe2 {[%emt 0:00:46]} Qb5 {[%emt 0:00:15]} 28. Qh5 {[%emt 0:02:25]} Qf1 {[%emt 0:00:21]} 29. Qxf5 {[%emt 0:00:29]} Rg2+ {[%emt 0:00:27]} 30. Kb3 {[%emt 0:00:01]} b5 {[%emt 0:01:10]} 31. a3 {[%emt 0:00:38]} Qc4# {[%emt 0:00:03]} 0-1

[Event "Szansa Chess Open 2022"]
[Site "Warsaw"]
[Date "2022.09.17"]
[Round "1.8"]
[White "Cwik, Jacek"]
[Black "Kowalski, Igor"]
[Result "1-0"]
[ECO "B20"]
[WhiteElo "1611"]
[BlackElo "2344"]
[Annotator "ChessBase"]
[PlyCount "25"]
[EventDate "2022.09.17"]
[EventCountry "POL"]
[SourceTitle "playchess.com"]
[Source "ChessBase"]
[SourceQuality "1"]
[TimeControl "900+10"]

1. e4 {[%emt 0:00:03]} c5 {[%emt 0:00:05]} 2. Be2 {[%emt 0:00:14]} Nc6 {[%emt 0:00:14]} 3. f4 {[%emt 0:00:05]} g6 {[%emt 0:00:09]} 4. Nf3 {[%emt 0:00:07]} Bg7 {[%emt 0:00:03]} 5. O-O {[%emt 0:00:15]} e6 {[%emt 0:00:23]} 6. d3 {[%emt 0:00:03]} Nge7 {[%emt 0:00:03]} 7. c3 {[%emt 0:00:14]} O-O {[%emt 0:00:09]} 8. Be3 {[%emt 0:00:20]} b6 {[%emt 0:00:17]} 9. Na3 {[%emt 0:02:36]} Bb7 {[%emt 0:00:15]} 10. Nb1 Bc8 11. Na3 Bb7 12. Qe1 d5 13. Nc2 1-0

[Event "Szansa Chess Open 2022"]
[Site "Warsaw"]
[Date "2022.09.17"]
[Round "1.9"]
[White "Psyk, Radoslaw"]
[Black "Mazurek, Jerzy"]
[Result "0-1"]
[ECO "A04"]
[WhiteElo "2404"]
[BlackElo "1726"]
[Annotator "ChessBase"]
[PlyCount "20"]
[EventDate "2022.09.17"]
[EventCountry "POL"]
[SourceTitle "playchess.com"]
[Source "ChessBase"]
[SourceQuality "1"]
[TimeControl "900+10"]

1. Nf3 {[%emt 0:00:02]} c5 {[%emt 0:00:02]} 2. e3 {[%emt 0:00:03]} g6 {[%emt 0:00:10]} 3. c4 {[%emt 0:00:12]} Bg7 {[%emt 0:00:02]} 4. d4 {[%emt 0:00:29]} Nf6 {[%emt 0:00:05]} 5. Nbd2 {[%emt 0:00:17]} cxd4 {[%emt 0:00:10]} 6. Nxd4 {[%emt 0:00:51]} O-O {[%emt 0:00:03]} 7. Be2 {[%emt 0:00:11]} d5 {[%emt 0:00:03]} 8. O-O {[%emt 0:00:13]} e5 {[%emt 0:00:26]} 9. N4f3 {[%emt 0:01:33]} Nc6 {[%emt 0:00:03]} 10. cxd5 {[%emt 0:00:14]} Nxd5 {[%emt 0:00:03]} 0-1

[Event "Szansa Chess Open 2022"]
[Site "Warsaw"]
[Date "2022.09.17"]
[Round "1.10"]
[White "Wydmanski, Szymon"]
[Black "Jarmula, Lukasz"]
[Result "1-0"]
[ECO "A46"]
[WhiteElo "1809"]
[BlackElo "2457"]
[Annotator "ChessBase"]
[PlyCount "85"]
[EventDate "2022.09.17"]
[EventCountry "POL"]
[SourceTitle "playchess.com"]
[Source "ChessBase"]
[SourceQuality "1"]
[TimeControl "900+10"]

1. d4 {[%emt 0:00:03]} Nf6 {[%emt 0:00:03]} 2. Nf3 {[%emt 0:00:06]} e6 {[%emt 0:00:02]} 3. g3 {[%emt 0:00:02]} b6 {[%emt 0:00:05]} 4. Bg2 {[%emt 0:00:03]} Bb7 {[%emt 0:00:02]} 5. O-O {[%emt 0:00:05]} Be7 {[%emt 0:00:04]} 6. c4 {[%emt 0:00:05]} O-O {[%emt 0:00:07]} 7. Re1 {[%emt 0:00:10]} c5 {[%emt 0:00:14]} 8. d5 {[%emt 0:00:06]} exd5 {[%emt 0:00:18]} 9. Nh4 {[%emt 0:00:07]} d6 {[%emt 0:00:47]} 10. cxd5 {[%emt 0:00:27]} Re8 {[%emt 0:00:15]} 11. e4 {[%emt 0:00:22]} Nfd7 {[%emt 0:00:21]} 12. Nf5 {[%emt 0:00:08]} Bf8 {[%emt 0:00:06]} 13. Nc3 {[%emt 0:00:18]} a6 {[%emt 0:00:11]} 14. a4 {[%emt 0:00:03]} g6 {[%emt 0:00:09]} 15. Nh6+ {[%emt 0:00:17]} Bxh6 {[%emt 0:00:23]} 16. Bxh6 {[%emt 0:00:02]} Ne5 {[%emt 0:00:11]} 17. f4 {[%emt 0:00:07]} Ned7 {[%emt 0:00:19]} 18. Qf3 {[%emt 0:00:39]} Qf6 {[%emt 0:00:22]} 19. e5 {[%emt 0:00:10]} dxe5 {[%emt 0:00:10]} 20. Ne4 {[%emt 0:00:07]} Qe7 {[%emt 0:00:31]} 21. fxe5 {[%emt 0:00:27]} Bxd5 {[%emt 0:00:24]} 22. Qf4 {[%emt 0:00:37]} Nc6 {[%emt 0:00:13]} 23. Nd6 {[%emt 0:02:32]} Bxg2 {[%emt 0:00:28]} 24. Nxe8 {[%emt 0:00:08]} Rxe8 {[%emt 0:00:14]} 25. Kxg2 {[%emt 0:00:10]} Ndxe5 {[%emt 0:00:25]} 26. Bg5 {[%emt 0:00:24]} Qe6 {[%emt 0:00:58]} 27. Bf6 {[%emt 0:00:19]} Qd5+ {[%emt 0:00:46]} 28. Qe4 {[%emt 0:00:42]} Qxe4+ {[%emt 0:00:49]} 29. Rxe4 {[%emt 0:00:04]} Re6 {[%emt 0:00:15]} 30. Bxe5 {[%emt 0:00:08]} Nxe5 {[%emt 0:00:11]} 31. Rd1 {[%emt 0:00:36]} Kg7 {[%emt 0:00:35]} 32. Re2 {[%emt 0:00:31]} c4 {[%emt 0:00:22]} 33. Rd8 {[%emt 0:00:42]} Kf6 {[%emt 0:00:24]} 34. Ra8 {[%emt 0:00:36]} a5 {[%emt 0:00:09]} 35. Rb8 {[%emt 0:00:04]} Rc6 {[%emt 0:00:18]} 36. Rf2+ {[%emt 0:00:53]} Kg7 {[%emt 0:00:47]} 37. Rb7 {[%emt 0:00:06]} h5 {[%emt 0:00:19]} 38. h3 {[%emt 0:00:18]} g5 {[%emt 0:00:10]} 39. Rf5 {[%emt 0:00:32]} Nd3 {[%emt 0:01:00]} 40. Rxg5+ {[%emt 0:00:06]} Kh6 {[%emt 0:00:31]} 41. Rb5 {[%emt 0:00:04]} Rf6 {[%emt 0:01:31]} 42. R7xb6 {[%emt 0:00:10]} Ne1+ {[%emt 0:00:14]} 43. Kh1 {[%emt 0:00:17]} 1-0

[Event "Szansa Chess Open 2022"]
[Site "Warsaw"]
[Date "2022.09.17"]
[Round "1.12"]
[White "Stefaniuk, Zbigniew"]
[Black "Lewicki, Miroslaw"]
[Result "0-1"]
[ECO "D10"]
[WhiteElo "1608"]
[BlackElo "2336"]
[Annotator "ChessBase"]
[PlyCount "21"]
[EventDate "2022.09.17"]
[EventCountry "POL"]
[SourceTitle "playchess.com"]
[Source "ChessBase"]
[SourceQuality "1"]
[TimeControl "900+10"]

1. d4 {[%emt 0:00:01]} d5 {[%emt 0:00:03]} 2. c4 {[%emt 0:00:01]} c6 {[%emt 0:00:03]} 3. cxd5 {[%emt 0:00:02]} cxd5 {[%emt 0:00:03]} 4. Bf4 {[%emt 0:00:01]} Nc6 {[%emt 0:00:13]} 5. e3 {[%emt 0:00:03]} Nf6 {[%emt 0:00:13]} 6. Nc3 {[%emt 0:00:03]} Bf5 {[%emt 0:00:22]} 7. Qb3 {[%emt 0:01:18]} Na5 {[%emt 0:00:11]} 8. Qa4+ {[%emt 0:00:02]} Bd7 {[%emt 0:00:02]} 9. Qc2 {[%emt 0:00:02]} Rc8 {[%emt 0:01:04]} 10. Bd3 {[%emt 0:00:04]} Nc6 {[%emt 0:01:22]} 11. a3 {[%emt 0:00:13]} 0-1